fUST/lending_fUST_20250113
["ID","MTS","AMOUNT","RATE_DAILY","PERIOD"]
[348749370,1736770156579,-549.63268416,0.00019178,2]
[348749371,1736770156607,-500.0,0.00019178,2]
[348749372,1736770156633,-500.0,0.00019178,2]
[348749373,1736770156657,-500.0,0.00019178,7]
[348749374,1736770156682,-500.0,0.00019178,2]
[348749375,1736770156707,-500.0,0.00019178,2]
[348749376,1736770156733,-549.45754678,0.00019178,2]
[348749377,1736770156759,-500.0,0.00019178,2]
[348749378,1736770156785,-500.0,0.00019178,2]
[348749379,1736770156810,-167.192672,0.00019178,2]
[348749380,1736770156833,-252.641,0.00019369,2]
[348749381,1736770156859,-507.28,0.00019452,3]
[348749382,1736770156886,-500.0,0.00019452,3]
[348749383,1736770156913,-500.0,0.00019452,3]
[348749384,1736770156939,-500.0,0.00019452,2]
[348749385,1736770156964,-500.0,0.00019452,3]
[348749386,1736770156991,-336.21679325,0.00019452,3]
[348749387,1736770157018,-500.0,0.00019452,3]
[348749388,1736770157045,-500.0,0.00019452,3]
[348749389,1736770157072,-500.0,0.00019452,3]
[348749390,1736770157095,-547.03,0.00019452,3]
[348749391,1736770157118,-500.0,0.00019452,3]
[348749392,1736770157142,-500.0,0.00019452,3]
[348749393,1736770157169,-421.98,0.00019452,3]
[348749394,1736770157197,-584.76,0.00019452,3]
[348749395,1736770157223,-500.0,0.00019452,3]
[348749396,1736770157249,-500.0,0.00019452,3]
[348749397,1736770157274,-500.0,0.00019452,3]
[348749398,1736770157302,-500.0,0.00019452,3]
[348749399,1736770157328,-500.0,0.00019452,2]
[348749400,1736770157351,-500.0,0.00019452,3]
[348749401,1736770157374,-505.61083161,0.00019452,3]
[348749402,1736770157398,-500.0,0.00019452,3]
[348749403,1736770157421,-2436.49,0.00019452,3]
[348749404,1736770157445,-500.0,0.00019452,3]
[348749405,1736770157469,-500.0,0.00019452,3]
[348749406,1736770157494,-500.0,0.00019452,3]
[348749407,1736770157520,-500.0,0.00019452,3]
[348749408,1736770157544,-500.0,0.00019452,3]
[348749409,1736770157572,-500.0,0.00019452,3]
[348749410,1736770157596,-1127.14827127,0.00019559,2]
[348749411,1736770157620,-420.0,0.00019677,2]
[348749412,1736770157644,-297.21825424,0.00019714,2]
[348749413,1736770157805,-507.28,0.00019726,3]
[348749414,1736770157828,-500.0,0.00019726,3]
[348749415,1736770157850,-500.0,0.00019726,3]
[348749416,1736770157871,-500.0,0.00019726,2]
[348749417,1736770157893,-500.0,0.00019726,3]
[348749418,1736770157915,-500.0,0.00019726,3]
[348749419,1736770157935,-507.14,0.00019726,3]
[348749420,1736770157956,-204.31,0.00019726,3]
[348749421,1736770157978,-500.0,0.00019726,3]
[348749422,1736770158000,-265.59,0.00019726,3]
[348749423,1736770158022,-500.0,0.00019726,3]
[348749424,1736770158044,-500.0,0.00019726,3]
[348749425,1736770158069,-500.0,0.00019726,2]
[348749426,1736770158092,-500.0,0.00019726,3]
[348749427,1736770158115,-500.0,0.00019726,3]
[348749428,1736770158137,-2436.49,0.00019726,3]
[348749429,1736770158160,-500.0,0.00019726,3]
[348749430,1736770158182,-500.0,0.00019726,3]
[348749431,1736770158206,-500.0,0.00019726,3]
[348749432,1736770158228,-611.3,0.00019726,3]
[348749433,1736770158252,-500.0,0.00019726,3]
[348749434,1736770158276,-500.0,0.00019838,2]
[348749435,1736770158301,-268.70114695,0.00019838,2]
[348749436,1736770158323,-357.99580065,0.00019838,2]
[348749437,1736770163149,-142.00419935,0.00019838,2]
[348749438,1736770163171,-500.0,0.00019863,9]
[348749439,1736770163192,-349.09666935,0.000199,2]
[348749440,1736770163218,-507.28,0.0002,3]
[348749441,1736770163241,-500.0,0.0002,3]
[348749442,1736770163261,-16.90819444,0.0002,2]
[348749503,1736770232250,-500.0,0.00019178,2]
[348749505,1736770232261,-563.28000004,0.00019178,2]
[348749507,1736770232271,-477.06999996,0.00019178,2]
[348749509,1736770232283,-22.93000004,0.00019178,2]
[348749511,1736770232293,-500.0,0.00019178,2]
[348749513,1736770232303,-500.0,0.00019178,2]
[348749525,1736770232409,-501.43039448,0.00019178,2]
[348749528,1736770232448,-500.0,0.00019178,2]
[348749530,1736770232458,-256.49968267,0.00019452,3]
[348749532,1736770232468,-500.0,0.00019452,3]
[348749534,1736770232477,-500.0,0.00019452,3]
[348749536,1736770232487,-602.83898624,0.00019452,3]
[348749538,1736770232496,-5393.40093657,0.00019725,2]
[348749540,1736770232588,-11691.59906343,0.00019725,2]
[348749541,1736770232597,-300.0,0.00019725,2]
[348749542,1736770232606,-500.0,0.00019726,3]
[348749543,1736770232615,-500.0,0.00019726,3]
[348749544,1736770232625,-483.09180556,0.0002,2]
[348749545,1736770232634,-500.0,0.0002,3]
[348749546,1736770232645,-3000.98902112,0.0002,2]
[348749547,1736770232657,-107.01097888,0.0002,2]
[348749548,1736770232666,-245.44,0.0002,3]
[348749549,1736770232676,-300.0,0.0002,8]
[348749550,1736770232685,-500.0,0.0002,3]
[348749551,1736770232694,-500.0,0.0002,2]
[348749552,1736770232703,-500.0,0.0002,3]
[348749553,1736770232713,-2436.49,0.0002,3]
[348749554,1736770232722,-500.0,0.0002,3]
[348749555,1736770232732,-500.0,0.0002,3]
[348749556,1736770232741,-228.53,0.0002,3]
[348749557,1736770232750,-321.70157007,0.0002,3]
[348749558,1736770232762,-239.23842993,0.0002,3]
[348749559,1736770232771,-500.0,0.0002,3]
[348749560,1736770232781,-349.0966693,0.00020038,2]
[348749561,1736770232790,-158.60298352,0.00020176,2]
[348749600,1736770237980,-668.65,0.00019178,2]
[348749601,1736770237990,-668.65,0.00019452,3]
[348749602,1736770238000,-190.24293094,0.00019726,3]
[348749603,1736770238034,-478.40706906,0.00019726,3]
[348749604,1736770238044,-668.65,0.0002,3]
[348749605,1736770238054,-190.49368578,0.00020176,2]
[348749606,1736770238064,-622.39,0.000202,2]
[348749607,1736770238074,-500.0,0.00020273,2]
[348749608,1736770238083,-500.0,0.00020273,3]
[348749609,1736770238093,-500.0,0.00020273,3]
[348749610,1736770238102,-500.0,0.00020273,2]
[348749611,1736770238112,-500.0,0.00020273,3]
[348749612,1736770238121,-2436.49,0.00020273,3]
[348749613,1736770238130,-500.0,0.00020273,3]
[348749614,1736770238140,-500.0,0.00020273,3]
[348749615,1736770238149,-500.0,0.00020273,3]
[348749616,1736770238162,-668.65,0.00020273,3]
[348749617,1736770238171,-349.0966693,0.00020314,2]
[348749618,1736770238181,-198.81646,0.00020447,2]
[348749619,1736770238191,-349.0966693,0.00020452,2]
[348749620,1736770238200,-500.0,0.00020544,3]
[348749621,1736770238210,-500.0,0.00020547,2]
[348749622,1736770238220,-500.0,0.00020547,3]
[348749623,1736770238235,-500.0,0.00020547,3]
[348749624,1736770238245,-500.0,0.00020547,2]
[348749625,1736770238254,-500.0,0.00020547,3]
[348749626,1736770238265,-2436.49,0.00020547,3]
[348749627,1736770238274,-500.0,0.00020547,3]
[348749628,1736770238283,-158.8,0.00020547,3]
[348749629,1736770238293,-500.0,0.00020547,3]
[348749630,1736770238303,-349.0966693,0.0002059,2]
[348749631,1736770238312,-349.0966693,0.00020728,2]
[348749632,1736770238322,-500.0,0.00020818,3]
[348749633,1736770238332,-194.44,0.00020821,2]
[348749634,1736770238341,-500.0,0.00020821,3]
[348749635,1736770238352,-570.67,0.00020821,3]
[348749636,1736770238361,-500.0,0.00020821,2]
[348749638,1736770238371,-500.0,0.00020821,3]
[348749641,1736770238380,-2436.49,0.00020821,3]
[348749643,1736770238390,-500.0,0.00020821,3]
[348749646,1736770238399,-349.0966693,0.00020866,2]
[348749649,1736770238410,-1000.0,0.00021,21]
[348749652,1736770238421,-340.699794,0.00021,2]
[348749655,1736770238430,-349.0966693,0.00021003,2]
[348749656,1736770238440,-395.0,0.00021017,2]
[348749659,1736770238451,-500.0,0.00021092,3]
[348749661,1736770238460,-500.0,0.00021095,3]
[348749663,1736770238470,-500.0,0.00021095,2]
[348749665,1736770238479,-500.0,0.00021095,3]
[348749667,1736770238489,-2436.49,0.00021095,3]
[348749669,1736770238499,-500.0,0.00021095,3]
[348749671,1736770238509,-349.0966693,0.00021141,2]
[348749672,1736770238518,-349.0966693,0.00021279,2]
[348749675,1736770238528,-500.0,0.00021369,3]
[348749677,1736770238539,-500.0,0.00021369,2]
[348749679,1736770238548,-500.0,0.00021369,3]
[348749681,1736770238558,-2436.49,0.00021369,3]
[348749683,1736770238567,-500.0,0.00021369,3]
[348749685,1736770238576,-349.0966693,0.00021417,2]
[348749687,1736770238586,-287.0,0.00021484,2]
[348749689,1736770238595,-300.0,0.000215,9]
[348749691,1736770238605,-349.0966693,0.00021555,2]
[348749693,1736770238614,-3108.0,0.000216,4]
[348749695,1736770238624,-500.0,0.00021643,3]
[348749697,1736770238633,-500.0,0.00021643,2]
[348749699,1736770238642,-500.0,0.00021643,3]
[348749701,1736770238652,-2436.49,0.00021643,3]
[348749703,1736770238663,-500.0,0.00021643,3]
[348749705,1736770238673,-349.0966693,0.00021693,2]
[348749707,1736770238682,-349.0966693,0.00021831,2]
[348749709,1736770238692,-500.0,0.00021917,3]
[348749711,1736770238702,-500.0,0.00021917,2]
[348749713,1736770238712,-500.0,0.00021917,3]
[348749715,1736770238722,-2436.49,0.00021917,3]
[348749717,1736770238731,-500.0,0.00021917,3]
[348749719,1736770238741,-349.0966693,0.00021969,2]
[348749721,1736770238750,-1000.0,0.00022,22]
[348749723,1736770238760,-150.0,0.00022,2]
[348749725,1736770238770,-158.0,0.00022,2]
[348749727,1736770238779,-349.0966693,0.00022107,2]
[348749729,1736770238789,-500.0,0.00022191,3]
[348749731,1736770238799,-500.0,0.00022191,2]
[348749733,1736770238809,-500.0,0.00022191,3]
[348749735,1736770238818,-2436.49,0.00022191,3]
[348749737,1736770238829,-500.0,0.00022191,3]
[348749739,1736770238840,-349.0966693,0.00022245,2]
[348749741,1736770238850,-349.0966693,0.00022383,2]
[348749743,1736770238859,-507.61,0.0002245,2]
[348749745,1736770238868,-500.0,0.00022464,3]
[348749747,1736770238878,-500.0,0.00022464,3]
[348749749,1736770238887,-500.0,0.00022464,3]
[348749751,1736770238897,-211.30444048,0.00022464,3]
[348749753,1736770238909,-500.0,0.00022464,3]
[348749755,1736770238918,-500.0,0.00022464,3]
[348749757,1736770238928,-500.0,0.00022464,3]
[348749759,1736770238938,-500.0,0.00022464,3]
[348749761,1736770238949,-500.0,0.00022464,3]
[348749763,1736770238958,-500.0,0.00022464,3]
[348749766,1736770238971,-500.0,0.00022464,3]
[348749768,1736770238980,-500.0,0.00022464,3]
[348749770,1736770238990,-500.0,0.00022465,3]
[348749772,1736770238999,-500.0,0.00022465,2]
[348749773,1736770239009,-500.0,0.00022465,3]
[348749776,1736770239018,-2436.49,0.00022465,3]
[348749778,1736770239028,-500.0,0.00022465,3]
[348749780,1736770239038,-349.0966693,0.00022521,2]
[348749782,1736770239048,-349.0966693,0.00022659,2]
[348749784,1736770239058,-585.19,0.00022738,3]
[348749786,1736770239067,-500.0,0.00022738,3]
[348749788,1736770239077,-500.0,0.00022738,3]
[348749790,1736770239086,-500.0,0.00022738,3]
[348749792,1736770239096,-500.0,0.00022738,3]
[348749794,1736770239106,-500.0,0.00022738,3]
[348749795,1736770239115,-618.26822525,0.00022739,3]
[348749798,1736770239124,-500.0,0.00022739,2]
[348749800,1736770239134,-564.81340535,0.00022739,3]
[348749802,1736770239144,-2436.49,0.00022739,3]
[348749804,1736770239157,-500.0,0.00022739,3]
[348749806,1736770239167,-349.0966693,0.00022797,2]
[348749808,1736770239177,-500.0,0.00022876,2]
[348749810,1736770239186,-327.60567684,0.000229,2]
[348749812,1736770239196,-349.0966693,0.00022934,2]
[348749814,1736770239206,-1000.0,0.00023,23]
[348749816,1736770239215,-7438.69753278,0.00023,2]
[348749817,1736770239228,-300.0,0.00023,10]
[348749820,1736770239238,-7438.69753278,0.00023,3]
[348749821,1736770239247,-500.0,0.00023012,3]
[348749824,1736770239257,-500.0,0.00023012,3]
[348749826,1736770239268,-500.0,0.00023012,3]
[348749828,1736770239277,-500.0,0.00023012,3]
[348749830,1736770239286,-500.0,0.00023013,2]
[348749832,1736770239296,-2436.49,0.00023013,3]
[348749833,1736770239306,-500.0,0.00023013,3]
[348749836,1736770239317,-158.0,0.00023014,2]
[348749838,1736770239326,-7438.69753278,0.0002302,3]
[348749840,1736770239335,-349.0966693,0.00023072,2]
[348749842,1736770239345,-349.0966693,0.0002321,2]
[348749844,1736770239354,-500.0,0.00023286,3]
[348749846,1736770239364,-500.0,0.00023286,3]
[348749847,1736770239373,-500.0,0.00023286,3]
[348749850,1736770239384,-500.0,0.00023286,3]
[348749852,1736770239393,-500.0,0.00023287,2]
[348749854,1736770239402,-2436.49,0.00023287,3]
[348749856,1736770239414,-645.73,0.00023287,3]
[348749858,1736770239424,-3108.0,0.00023328,7]
[348749860,1736770239434,-349.0966693,0.00023348,2]
[348749862,1736770239443,-416.67,0.0002335,2]
[348749865,1736770239453,-874.4305116,0.00023387,2]
[348749867,1736770239462,-11753.96916124,0.00023474,2]
[348749869,1736770239471,-349.0966693,0.00023486,2]
[348749871,1736770239481,-1202.17433976,0.00023521,2]
[348749873,1736770239490,-3000.0,0.00023522,2]
[348749875,1736770239500,-500.0,0.0002356,3]
[348749877,1736770239509,-500.0,0.0002356,3]
[348749879,1736770239518,-500.0,0.0002356,3]
[348749881,1736770239527,-500.0,0.00023561,2]
[348749883,1736770239537,-2436.49,0.00023561,3]
[348749885,1736770239546,-188.0,0.00023571,2]
[348749887,1736770239555,-188.0,0.00023571,2]
[348749889,1736770239565,-188.0,0.00023571,2]
[348749891,1736770239574,-190.87,0.00023571,2]
[348749892,1736770239584,-167.0,0.00023571,2]
[348749895,1736770239594,-167.43,0.00023571,2]
[348749896,1736770239603,-500.0,0.0002362,2]
[348749900,1736770239613,-425.55179896,0.0002362,2]
[348749902,1736770239623,-500.0,0.0002362,2]
[348749904,1736770239633,-500.0,0.0002362,2]
[348749906,1736770239643,-11759.72462257,0.00023621,5]
[348749907,1736770239652,-10132.74808169,0.00023621,5]
[348749910,1736770239664,-602092.58768676,0.00023621,10]
[348749912,1736770239678,-17604.88312079,0.00023621,10]
[348749914,1736770239690,-9048.79518921,0.00023621,10]
[348749916,1736770239702,-428.08,0.00023621,10]
[348749976,1736770240264,-668.65,0.00020547,3]
[348749978,1736770240275,-4331.3075024,0.00023621,10]
[348749989,1736770240370,-369.15864341,0.00023621,10]
[348749992,1736770240382,-1405.24462359,0.00023621,10]
[348750320,1736770243238,-500.0,0.00019178,2]
[348750322,1736770243248,-668.65,0.00020821,3]
[348750324,1736770243258,-668.65,0.00021095,3]
[348750326,1736770243267,-668.65,0.00021369,3]
[348750328,1736770243279,-668.65,0.00021643,3]
[348750331,1736770243288,-13269.30926628,0.00023621,10]
[348750333,1736770243302,-472.00000064,0.00023621,10]
[348750338,1736770243346,-668.65,0.00021917,3]
[348750341,1736770243356,-90448.23358254,0.00023621,10]
[348750343,1736770243368,-446.32188299,0.00023621,10]
[348750345,1736770243380,-365.662,0.00023621,10]
[348750347,1736770243392,-2515.76,0.00023621,10]
[348750635,1736770246115,-500.0,0.00019452,2]
[348750667,1736770246591,-260.69527463,0.00019726,2]
[348750672,1736770246650,-239.30472537,0.00019726,2]
[348750674,1736770246661,-500.0,0.0002,2]
[348750676,1736770246676,-500.0,0.00020273,2]
[348750677,1736770246686,-500.0,0.00020547,2]
[348750679,1736770246697,-500.0,0.00020821,2]
[348750681,1736770246707,-642.40235581,0.00021095,2]
[348750683,1736770246716,-668.65,0.00022191,3]
[348750685,1736770246725,-668.65,0.00022465,3]
[348750687,1736770246735,-668.65,0.00022739,3]
[348750689,1736770246745,-668.65,0.00023013,3]
[348750691,1736770246755,-414.57367909,0.00023621,10]
[348750694,1736770246767,-305.0,0.00023621,10]
[348750696,1736770246778,-4545.23462057,0.00023621,10]
[348750698,1736770246792,-1807.4,0.00023621,10]
[348751527,1736770256252,50000.0,0.00025,120]
[348752136,1736770640792,191.297314,0.00013973,2]
[348752138,1736770743518,-150.0,0.00023624,61]
[348752139,1736770982277,150.0,0.00013,10]
[348752142,1736771238125,-220.39716136,0.00018068,2]
[348752143,1736771242092,-21.82491504,0.00018068,2]
[348752144,1736771242115,-225.7732733,0.00018147,2]
[348752145,1736771242137,-201.8750288,0.00018175,2]
[348752146,1736771242160,-805.88322443,0.00018308,2]
[348752155,1736771352098,-7283.73427419,0.00016,2]
[348752156,1736771352119,-263.06404938,0.00018037,2]
[348752160,1736771358126,-13.22249962,0.00018037,2]
[348752161,1736771358151,-341.0,0.00018307,2]
[348752162,1736771358175,-300.0,0.00018307,2]
[348752163,1736771358197,-4471.92769707,0.00018308,2]
[348752164,1736771358220,-885.01529269,0.00018408,2]
[348752165,1736771362181,-70.32550231,0.00018408,2]
[348752166,1736771362201,-1871.1944835,0.00019043,2]
[348752167,1736771362227,-513.22798718,0.00019077,2]
[348752168,1736771362248,-483.37171999,0.00019077,2]
[348752169,1736771362269,-176.71377592,0.00019078,2]
[348752170,1736771362292,-152.0,0.00019134,2]
[348752171,1736771362314,-302.0,0.00019166,2]
[348752172,1736771362335,-500.0,0.00019173,2]
[348752173,1736771362357,-500.0,0.00019173,2]
[348752174,1736771362380,-573.44867059,0.00019173,2]
[348752175,1736771362403,-500.68344232,0.00019173,2]
[348752176,1736771362424,-500.0,0.00019173,2]
[348752177,1736771362444,-500.0,0.00019173,2]
[348752178,1736771362466,-500.0,0.00019173,2]
[348752179,1736771362488,-840.82952934,0.00019173,2]
[348752180,1736771362509,-500.0,0.00019173,2]
[348752181,1736771362530,-500.0,0.00019173,2]
[348752182,1736771362553,-500.0,0.00019177,2]
[348752183,1736771362577,-500.0,0.00019177,2]
[348752184,1736771362602,-500.0,0.00019177,2]
[348752185,1736771362624,-500.0,0.00019177,2]
[348752186,1736771362650,-202.65355044,0.00019177,2]
[348752187,1736771362672,-500.0,0.00019177,2]
[348752188,1736771362697,-500.0,0.00019177,2]
[348752189,1736771362719,-500.0,0.00019177,2]
[348752190,1736771362741,-500.0,0.00019177,2]
[348752191,1736771362763,-500.0,0.00019177,2]
[348752192,1736771362788,-500.0,0.00019177,2]
[348752193,1736771362810,-500.0,0.00019177,2]
[348752194,1736771362831,-500.0,0.00019177,2]
[348752195,1736771362852,-500.0,0.00019177,2]
[348752196,1736771362874,-500.0,0.00019177,2]
[348752197,1736771362898,-500.0,0.00019177,2]
[348752198,1736771362921,-500.0,0.00019177,2]
[348752199,1736771362943,-500.0,0.00019177,2]
[348752200,1736771362966,-500.0,0.00019177,2]
[348752201,1736771362989,-419.8774877,0.00019177,2]
[348752202,1736771363010,-450.0,0.00019177,2]
[348752203,1736771363033,-500.0,0.00019177,2]
[348752204,1736771363058,-500.0,0.00019177,2]
[348752205,1736771363079,-500.0,0.00019177,2]
[348752206,1736771363101,-500.0,0.00019177,2]
[348752207,1736771363122,-500.0,0.00019177,2]
[348752208,1736771363143,-500.0,0.00019177,2]
[348752209,1736771363166,-500.0,0.00019177,2]
[348752210,1736771363187,-500.0,0.00019177,2]
[348752211,1736771363208,-500.0,0.00019177,2]
[348752212,1736771363230,-500.0,0.00019177,2]
[348752213,1736771363251,-508.23488219,0.00019177,2]
[348752214,1736771363273,-500.0,0.00019177,2]
[348752215,1736771363293,-501.90185914,0.00019178,2]
[348752216,1736771363315,-1054.36,0.00019178,2]
[348752217,1736771363336,-500.0,0.00019178,2]
[348752218,1736771363358,-500.0,0.00019178,2]
[348752219,1736771363378,-523.98468812,0.00019178,2]
[348752220,1736771363400,-500.0,0.00019178,2]
[348752221,1736771363420,-501.98313769,0.00019178,2]
[348752222,1736771363442,-500.0,0.00019178,2]
[348752223,1736771363462,-500.0,0.00019178,2]
[348752224,1736771363483,-500.0,0.00019178,2]
[348752225,1736771363507,-500.0,0.00019178,2]
[348752226,1736771363527,-500.0,0.00019178,2]
[348752227,1736771363548,-500.0,0.00019178,2]
[348752228,1736771363568,-500.0,0.00019178,2]
[348752229,1736771363590,-500.0,0.00019178,2]
[348752230,1736771363613,-500.0,0.00019178,2]
[348752231,1736771363736,-500.0,0.00019178,2]
[348752232,1736771363759,-500.47408686,0.00019178,2]
[348752233,1736771363779,-501.64933079,0.00019178,2]
[348752234,1736771363799,-219.28,0.00019178,2]
[348752235,1736771363819,-500.0,0.00019178,2]
[348752236,1736771363841,-500.0,0.00019178,2]
[348752237,1736771363861,-503.27942746,0.00019178,2]
[348752238,1736771363883,-500.0,0.00019178,2]
[348752239,1736771363904,-500.0,0.00019178,2]
[348752240,1736771363926,-332.29554386,0.00019178,2]
[348752241,1736771363946,-504.01008289,0.00019178,2]
[348752242,1736771363967,-500.0,0.00019178,2]
[348752243,1736771363989,-500.0,0.00019178,2]
[348752244,1736771364009,-514.99823659,0.00019178,2]
[348752245,1736771364030,-500.0,0.00019178,2]
[348752246,1736771364051,-500.0,0.00019178,2]
[348752247,1736771364072,-502.28624063,0.00019178,2]
[348752248,1736771364092,-501.90620605,0.00019178,2]
[348752249,1736771364112,-502.24747807,0.00019178,2]
[348752250,1736771364133,-500.0,0.00019178,2]
[348752251,1736771364155,-500.0,0.00019178,2]
[348752252,1736771364177,-503.39223422,0.00019178,2]
[348752253,1736771364198,-501.63315266,0.00019178,2]
[348752254,1736771364220,-502.47317543,0.00019178,2]
[348752255,1736771364241,-500.0,0.00019178,2]
[348752256,1736771364262,-502.2598158,0.00019178,2]
[348752257,1736771364284,-500.0,0.00019178,2]
[348752258,1736771364306,-500.0,0.00019178,2]
[348752259,1736771364327,-502.52887044,0.00019178,2]
[348752260,1736771364348,-504.80921704,0.00019178,2]
[348752261,1736771364369,-501.60031261,0.00019178,2]
[348752262,1736771364389,-501.22227047,0.00019178,2]
[348752263,1736771364410,-500.0,0.00019178,2]
[348752264,1736771364432,-502.4313428,0.00019178,2]
[348752265,1736771364454,-502.63051567,0.00019178,2]
[348752266,1736771364476,-505.16599312,0.00019178,2]
[348752267,1736771364497,-500.99712827,0.00019178,2]
[348752268,1736771364519,-501.90000197,0.00019178,2]
[348752269,1736771364542,-502.6594227,0.00019178,2]
[348752270,1736771364565,-500.0,0.00019178,2]
[348752271,1736771364588,-504.37626092,0.00019178,2]
[348752272,1736771364612,-500.0,0.00019178,2]
[348752273,1736771364633,-504.19524353,0.00019178,2]
[348752274,1736771364659,-500.0,0.00019178,2]
[348752275,1736771364681,-500.0,0.00019178,2]
[348752276,1736771364701,-502.09388987,0.00019178,2]
[348752277,1736771364722,-503.26640427,0.00019178,2]
[348752278,1736771364746,-500.0,0.00019178,2]
[348752279,1736771364767,-503.43862009,0.00019178,2]
[348752280,1736771364788,-503.62013923,0.00019178,2]
[348752281,1736771364808,-500.0,0.00019178,2]
[348752282,1736771364829,-502.83533412,0.00019178,2]
[348752283,1736771364852,-500.62154488,0.00019178,2]
[348752284,1736771364881,-503.25745211,0.00019178,2]
[348752285,1736771364912,-503.32645466,0.00019178,2]
[348752286,1736771364941,-500.0,0.00019178,2]
[348752287,1736771364966,-501.7162901,0.00019178,2]
[348752288,1736771364993,-500.0,0.00019178,2]
[348752289,1736771365019,-500.0,0.00019178,2]
[348752290,1736771365044,-501.56753529,0.00019178,2]
[348752291,1736771365070,-502.51571468,0.00019178,2]
[348752292,1736771365095,-500.97522878,0.00019178,2]
[348752293,1736771365122,-503.64474337,0.00019178,2]
[348752294,1736771365148,-501.13196159,0.00019178,2]
[348752295,1736771365174,-500.0,0.00019178,2]
[348752296,1736771365199,-501.86431529,0.00019178,2]
[348752297,1736771365225,-500.0,0.00019178,2]
[348752298,1736771365273,-500.0,0.00019178,2]
[348752299,1736771365305,-500.0,0.00019178,2]
[348752300,1736771365333,-500.0,0.00019178,2]
[348752301,1736771365356,-500.0,0.00019178,2]
[348752302,1736771365382,-500.0,0.00019178,2]
[348752303,1736771365408,-500.0,0.00019178,2]
[348752304,1736771365441,-500.0,0.00019178,2]
[348752305,1736771365470,-500.0,0.00019178,2]
[348752306,1736771365496,-502.41835868,0.00019178,2]
[348752307,1736771365524,-534.71,0.00019178,2]
[348752308,1736771365552,-500.0,0.00019178,2]
[348752309,1736771365580,-500.0,0.00019178,2]
[348752310,1736771365611,-501.83300459,0.00019178,2]
[348752311,1736771365636,-500.0,0.00019178,2]
[348752312,1736771365661,-500.0,0.00019178,2]
[348752313,1736771365687,-500.0,0.00019178,2]
[348752314,1736771365714,-413.60473926,0.00019178,2]
[348752315,1736771365741,-500.0,0.00019178,2]
[348752316,1736771365764,-500.0,0.00019178,2]
[348752317,1736771365788,-500.0,0.00019178,2]
[348752318,1736771365812,-500.0,0.00019178,2]
[348752319,1736771365837,-500.0,0.00019178,2]
[348752320,1736771365861,-500.0,0.00019178,2]
[348752321,1736771365884,-500.0,0.00019178,2]
[348752322,1736771365907,-500.0,0.00019178,2]
[348752323,1736771365930,-500.0,0.00019178,2]
[348752324,1736771365955,-501.10061703,0.00019178,2]
[348752325,1736771365980,-397.77255188,0.00019178,2]
[348752326,1736771366005,-500.0,0.00019178,2]
[348752327,1736771366032,-500.0,0.00019178,2]
[348752328,1736771366058,-307.47982435,0.00019178,2]
[348752329,1736771366082,-500.0,0.00019178,2]
[348752330,1736771366106,-502.25891255,0.00019178,2]
[348752331,1736771366133,-622.06620975,0.00019178,2]
[348752332,1736771366158,-503.41544306,0.00019178,2]
[348752333,1736771366184,-500.0,0.00019178,2]
[348752334,1736771366208,-500.0,0.00019178,2]
[348752335,1736771366377,-500.0,0.00019178,2]